Cogmind - Beta 17.1 @@@ ROGUE MODE // 2026.09.19 @ 12:30:26 Player: MOPO3 Result: Destroyed self with Subdweller Shrapnel Launcher Performance ------------- Evolutions (0) 0 Regions Visited (2) 400 Robots Destroyed (31) 155 Value Destroyed (704) 704 Prototype IDs (0) 0 Alien Tech Used (0) 0 Bonus (0) 0 TOTAL SCORE: 1259 Bonus ------- None Cogmind --------- Core Integrity 0/250 Matter 150/300 Energy 250/250 System Corruption 0% Temperature Cool (0) Movement Core (1650) Ox32 Location -10/Subcaves Parts ------- > --- POWER (1) -------- Ion Engine > --- PROPULSION (2) --- (None) > --- UTILITY (2) ------ Huge Storage Unit Light Armor Plating > --- WEAPON (2) ------- Spread Laser Subdweller Shrapnel Launcher > --- INVENTORY (25) --- Ion Engine Wheel Wheel Wheel Heat Sink Large Storage Unit Subdweller Optics Sensor Array Weapon Shielding Shield Generator Spread Laser Spread Laser Spread Laser Subdweller Laser Subdweller Beam Cannon Light Assault Rifle Battle Rifle Subdweller Machine Gun Grenade Launcher Grenade Launcher Grenade Launcher Datajack Flamer Peak State ------------ > --- POWER ------------ Ion Engine > --- PROPULSION ------- Wheel Compact Wheel > --- UTILITY ---------- Huge Storage Unit Sensor Array > --- WEAPON ----------- Spread Laser Subdweller Beam Cannon > --- INVENTORY -------- Ion Engine Wheel Wheel Wheel Heat Sink Large Storage Unit Subdweller Optics Weapon Shielding Light Armor Plating Shield Generator Spread Laser Spread Laser Spread Laser Subdweller Laser Light Assault Rifle Subdweller Machine Gun Grenade Launcher Grenade Launcher Grenade Launcher Subdweller Shrapnel Launcher Datajack Flamer [Rating: 12] Favorites ----------- Power Ion Engine Engine Ion Engine Propulsion Wheel Wheel Wheel Utility Sensor Array Device Sensor Array Storage Huge Storage Unit Protection Light Armor Plating Weapon Spread Laser Energy Gun Spread Laser Energy Cannon Subdweller Beam Cannon Ballistic Gun Light Assault Rifle Launcher Subdweller Shrapnel Launcher Special Weapon Flamer Build | -11 -10 -10 ------- Run | Yrd Mat Sub Slots Evolved . | . . . Power . | . . . Propulsion . | . . . Utility . | . . . Weapon . | . . . Parts Attached 20 | 7 9 4 Power 2 | 1 . 1 Engine 2 | 1 . 1 Core . | . . . Reactor . | . . . Propulsion 3 | 2 1 . Treads . | . . . Leg . | . . . Wheel 3 | 2 1 . Hover . | . . . Flight . | . . . Utility 7 | 2 5 . Device 3 | 1 2 . Storage 3 | 1 2 . Processor . | . . . Hackware . | . . . Protection 1 | . 1 . Artifact . | . . . Weapon 8 | 2 3 3 Energy Gun 4 | 2 2 . Energy Cannon 1 | . . 1 Ballistic Gun 1 | . 1 . Ballistic Cannon . | . . . Launcher 1 | . . 1 Special Weapon 1 | . . 1 Impact Weapon . | . . . Slashing Weapon . | . . . Piercing Weapon . | . . . Special Melee Weapon . | . . . Unidentified Prototypes . | . . . Parts Lost 4 | . 1 3 Power . | . . . Propulsion 3 | . . 3 Utility . | . . . Weapon 1 | . 1 . Highest Loss Streak 2 | . 1 2 To Critical Strikes . | . . . Average Backups 16 | 2 10 20 Power . | . 1 1 Propulsion 3 | 1 3 3 Utility 4 | . 3 5 Weapon 6 | . 1 9 Tool/Special . | . . . Unused Backups 17 | . 2 15 Power . | . . . Propulsion 5 | . 2 3 Utility 3 | . . 3 Weapon 8 | . . 8 Tool/Special 1 | . . 1 Average Slot Usage (%) 99 | . 97 99 Engine 13 | . 13 14 Wheel 27 | . 28 27 Device 13 | . 13 13 Storage 14 | . 14 14 Energy Gun 22 | . 25 20 Energy Cannon 4 | . . 7 Peak Build Rating 12 | 7 11 12 Average Rating 9 | 5 7 11 On Entrance 6 | . 7 11 Avg Prop Armor Cover (%) . | . . . Naked Turns . | . . . Heaviest Build 99 | 15 92 99 Greatest Support 26 | 26 26 26 Greatest Overweight (x) 9 | 1 4 9 Average Overweight (x) 2 | . 1 3 Largest Inventory Capacity 25 | 8 25 25 Average Capacity 21 | 7 16 25 Most Carried 23 | 4 18 23 Average Carried 16 | 2 10 20 Final Capacity 25 | 8 25 25 Final Carried 23 | 4 17 23 Class Distribution -------------------- 100% | Mutant Dominant Class ---------------- Mutant | -10/Materials Mutant | -10/Subcaves Resources | -11 -10 -10 ----------- Run | Yrd Mat Sub Matter Collected 502 | 270 112 120 Remotely . | . . . Salvage Created 902 | 105 452 345 Parts 55 | 5 28 22 Haulers Intercepted 2 | . 2 . Recyclers Shooed . | . . . Parts Field Recycled . | . . . Retrieved Matter . | . . . Parts Self-Destructed 6 | . . 6 Prevented . | . . . Parts Restored . | . . . Kills | -11 -10 -10 ------- Run | Yrd Mat Sub Combat Hostiles Destroyed 25 | . 13 12 Guns 17 | . 13 4 Cannons 3 | . . 3 AOE 5 | . . 5 Classes Destroyed 8 | 2 5 1 Worker 1 | . 1 . Tunneler 1 | 1 . . Hauler 2 | . 2 . Recycler 1 | 1 . . Operator 1 | . 1 . Swarmer 10 | . 9 1 Grunt 5 | . 4 1 Subdweller 10 | . . 10 Best Kill Streak 5 | 2 3 5 Combat Bots Only 5 | . 3 5 Max Kills in Single Turn 3 | 1 1 3 Gunslinging . | . . . Exploded 3 | . . 3 Melee . | . . . Uniques/NPCs Destroyed . | . . . Combat | -11 -10 -10 -------- Run | Yrd Mat Sub Hostile Shots Fired 81 | . 44 37 Missed 23 | . 14 9 Hits 58 | . 30 28 Projectile 58 | . 30 28 Critical Strikes 2 | . 1 1 Damage Taken 868 | . 270 598 Core 253 | . 55 198 Absorbed by Shields . | . . . Regen/Repaired (Parts) 16 | . 16 . Core Remaining (%) 100 | 100 . . Volleys Fired 77 | 2 39 36 Largest 2 | 2 2 2 Hottest 145 | 90 105 145 Shots Fired 134 | 4 74 56 Gun 109 | 4 74 31 Cannon 15 | . . 15 Launcher 7 | . . 7 Special 3 | . . 3 Kinetic 9 | . 2 7 Thermal 88 | 2 37 49 Explosive . | . . . Electromagnetic 37 | 2 35 . Robot Hit Streak 13 | 2 11 13 Robot Miss Streak 4 | . 3 4 Penetration Max . | . . . Secondary Targets 1 | . 1 . Max Gunslinging Chain 1 | . 1 . Shots Hit Robots 81 | 2 45 34 Core Hits 73 | 2 23 48 Critical Kills . | . . . Critical Parts Destroyed . | . . . Critical Strikes 4 | . 4 . Burn 3 | . 3 . Corrupt 1 | . 1 . Melee Attacks . | . . . Impact . | . . . Slashing . | . . . Piercing . | . . . Sneak Attacks . | . . . Combat Hostiles . | . . . Follow-up Attacks . | . . . Damage Inflicted 1890 | 28 580 1282 Guns 1041 | 28 580 433 Cannons 198 | . . 198 Explosions 651 | . . 651 Melee . | . . . Ramming . | . . . Kinetic 651 | . . 651 Thermal 922 | . 291 631 Explosive . | . . . Electromagnetic 317 | 28 289 . Impact . | . . . Slashing . | . . . Piercing . | . . . Highest Corruption . | . . . Average Corruption . | . . . Corruption Purged . | . . . Corruption Blocked . | . . . Overload Shots . | . . . Overflow Damage . | . . . Projectiles . | . . . Explosions . | . . . Melee . | . . . Knockbacks . | . . . Impact . | . . . Kinetic . | . . . Secondary . | . . . Self-Inflicted Damage 59 | . . 59 Shots 2 | . . 2 Rammed . | . . . Targets Rammed . | . . . Kicked . | . . . Crushed . | . . . Highest Temperature 354 | 30 354 144 Average Temperature 71 | 17 89 35 Received Heat Transfer 165 | . 60 105 Effects 1 | . 1 . Short Circuit 1 | . 1 . Siege Activations . | . . . Martial Activations . | . . . Shielding Activations . | . . . Robots Disrupted . | . . . Combat Hostiles . | . . . Robots Corrupted . | . . . Combat Hostiles . | . . . Parts Fried 1 | . 1 . Impact Corruptions . | . . . Robots Melted . | . . . Combat Hostiles . | . . . Parts Melted 4 | . 4 . Heat Transferred 1757 | . 968 789 Parts Sabotaged . | . . . Parts Stolen . | . . . Parts Stripped . | . . . Power Chain Reactions . | . . . Alert | -11 -10 -10 ------- Run | Yrd Mat Sub Maximum Alert Level . | . . . Low Security (%) 100 | 100 100 . Level 1 . | . . . Level 2 . | . . . Level 3 . | . . . Level 4 . | . . . Level 5 . | . . . High Security . | . . . Max Security . | . . . Peak Influence 71 | 5 71 . Initial . | . . . Average 27 | 1 28 . Influence Increases 431 | 10 381 40 Destroy 0b10 Robot/C 300 | . 260 40 Destroy 0b10 Robot/NC 30 | 10 20 . Destroy Leader 54 | . 54 . Successful Hack 15 | . 15 . Destroy Structure 2 | . 2 . Lose Combat Pursuer 30 | . 30 . Influence Decreases 411 | 10 350 51 Entered New Map 15 | . . 15 Time Decay 366 | 10 340 16 Lost Part 30 | . 10 20 Squads Dispatched 2 | . 2 . Investigation 1 | . 1 . Extermination . | . . . Reinforcement 1 | . 1 . Assault . | . . . Garrison . | . . . Intercept . | . . . Searches Triggered . | . . . Construction Impeded . | . . . Haulers Reinforced . | . . . Active Scanning Responses . | . . . Cargo Convoy Interrupts . | . . . Stealth | -11 -10 -10 --------- Run | Yrd Mat Sub Distress Signals 1 | . 1 . Communications Jammed . | . . . Distress Signals . | . . . Times Spotted 42 | . 26 16 Peak Tracking Total 5 | . 5 5 Tactical Retreats 2 | . 2 . Traps | -11 -10 -10 ------- Run | Yrd Mat Sub Traps Triggered 3 | . 2 1 Indirectly . | . . . Trap Hack Attempts . | . . . Triggered . | . . . Disarmed . | . . . Reprogrammed . | . . . Reused . | . . . Traps Extracted . | . . . Installed . | . . . Triggered . | . . . Machines | -11 -10 -10 ---------- Run | Yrd Mat Sub Machines Disabled . | . . . Max in Single Turn . | . . . Machines Repaired . | . . . Machines Dismantled . | . . . Machines Sabotaged . | . . . Overloaded Fab Kills . | . . . Hacking | -11 -10 -10 --------- Run | Yrd Mat Sub Machines Accessed 8 | . 7 1 Terminals 4 | . 4 . Fabricators . | . . . Repair Stations 1 | . 1 . Recycling Units 2 | . 2 . Scanalyzers . | . . . Garrison Access . | . . . Total Hacks 20 | . 19 1 Successful 12 | . 11 1 Failed 8 | . 8 . Catastrophic 1 | . 1 . Database Lockouts . | . . . Manual 11 | . 11 . Terminals 11 | . 11 . Fabricators . | . . . Repair Stations 4 | . 4 . Recycling Units 4 | . 4 . Scanalyzers . | . . . Garrison Access . | . . . Terminal Hacks 2 | . 1 1 Record 1 | . . 1 Part Schematic 1 | . 1 . Fabricator Hacks . | . . . Repair Station Hacks 3 | . 3 . Scan Component 2 | . 2 . Repair 1 | . 1 . Recycling Unit Hacks 2 | . 2 . Retrieve Components 2 | . 2 . Scanalyzer . | . . . Garrison Access Hacks . | . . . Unauthorized Hacks 5 | . 5 . Terminals 5 | . 5 . Botnet 3 | . 3 . Skim 2 | . 2 . Fabricators . | . . . Repair Stations . | . . . Recycling Units . | . . . Scanalyzers . | . . . Garrison Access . | . . . Data Cores Recovered . | . . . Used . | . . . Hacking Detections 6 | . 6 . Full Trace Events . | . . . Feedback Events . | . . . Feedback Blocked . | . . . Robot Schematics Acquired . | . . . Robots Built . | . . . Authchips . | . . . Time . | . . . Total Robot Build Rating . | . . . Part Schematics Acquired 1 | . 1 . Parts Built . | . . . Authchips . | . . . Time . | . . . Total Part Build Rating . | . . . Part Studies Acquired . | . . . Parts Repaired 1 | . 1 . Time 26 | . 26 . Parts Recycled . | . . . Recycled Matter . | . . . Retrieved Matter . | . . . Retrieved Components 9 | . 9 . Parts Scanalyzed . | . . . Part Schematics Acquired . | . . . Parts Damaged . | . . . Bothacking | -11 -10 -10 ------------ Run | Yrd Mat Sub Used RIF Installer . | . . . Robots Hacked . | . . . Non-combat . | . . . Combat . | . . . Robot Hacks Applied . | . . . Relay Couplers Released . | . . . Fabnet Peak Effective % . | . . . Robots Rewired . | . . . Allies Hacked . | . . . Hacks Repelled . | . . . Allies | -11 -10 -10 -------- Run | Yrd Mat Sub Total Allies . | . . . Largest Group . | . . . Highest-Rated Group . | . . . Highest-Rated Ally . | . . . Total Orders . | . . . Ally Attacks . | . . . Total Damage . | . . . Kills . | . . . Allies Corrupted . | . . . Allies Melted . | . . . Intel | -11 -10 -10 ------- Run | Yrd Mat Sub Active Infowar (turns) 2618 | 10 865 1743 Sensors 2121 | . 378 1743 Seismic 497 | 10 487 . Robot Analysis Total . | . . . Derelict Logs Recovered 1 | . . 1 Drone Launches . | . . . Drone Recoveries . | . . . Exploration | -11 -10 -10 ------------- Run | Yrd Mat Sub Turns Passed 2998 | 65 1121 1812 Spaces Moved 1972 | 51 706 1215 Core 1 | 1 . . Treads . | . . . Legs . | . . . Wheels 1971 | 50 706 1215 Hover . | . . . Flight . | . . . Fastest Speed 50 | 50 90 135 Average Speed 122 | 87 102 135 Slowest Speed 215 | 95 140 215 Overloaded Moves . | . . . Propulsion Burnouts . | . . . Robots Hopped . | . . . Potential Cave-ins . | . . . Cave-ins Triggered . | . . . Exploration Rate (%) 48 | 3 94 47 Regions Visited 2 Branch Regions 1 Pre-discovered Areas 1 | . . 1 Known Exits Taken . | . . . Unknown Exits Taken 2 | 1 1 . Scrap Searched 1 | . . 1 Spaces Dug . | . . . Terrain Destroyed 55 | . . 55 Melee . | . . . Projectile . | . . . AOE 55 | . . 55 Terrain Rammed . | . . . Walls Destroyed . | . . . Machines Disabled . | . . . Actions | -11 -10 -10 --------- Run | Yrd Mat Sub Total 2404 | 63 1027 1314 Wait 293 | . 249 44 Move 1970 | 50 705 1215 Hop . | . . . Pick Up 27 | 4 16 7 Fast Attach 10 | 7 3 . Attach 2 | . 1 1 Detach . | . . . Swap 20 | . 9 11 Drop 5 | . 5 . Fire 77 | 2 39 36 Melee . | . . . Ram . | . . . Kick . | . . . Crush . | . . . Escape Stasis . | . . . Rewire . | . . . Trap . | . . . Miscellaneous . | . . . Route ------- -11/Scrapyard -10/Materials (discovered 5 exits: [*Mat x3] / [*Min] / *Sub) -10/Subcaves (discovered 1 exit: [*Mat]) History --------- Turn | Location | Event 16 | -11/Scrapyard | Discovered new exit (range 15) 66 | -11/Scrapyard | Entered Materials 161 | -10/Materials | Discovered new exit (range 15) 288 | -10/Materials | Discovered new exit (range 5) 306 | -10/Materials | Build established: Mutant 393 | -10/Materials | Discovered new exit (range 15) 461 | -10/Materials | Repaired EM Pulse Gun 983 | -10/Materials | Discovered new exit (range 7) 1075 | -10/Materials | Discovered new exit (range 16) 1187 | -10/Materials | Entered Subcaves 1188 | -10/Subcaves | Approached by a straggling Scientist 1255 | -10/Subcaves | A swath of the cavern ceiling suddenly collapsed 1488 | -10/Subcaves | Discovered new exit (range 7) 1549 | -10/Subcaves | Shifting Twisted Machinery released Sub. Beam Cannon 1549 | -10/Subcaves | Shifting Twisted Machinery released Flamer 1871 | -10/Subcaves | Visited Clippyterm 1983 | -10/Subcaves | Shifting Twisted Machinery released Sub. Laser 1985 | -10/Subcaves | A swath of the cavern ceiling suddenly collapsed 2197 | -10/Subcaves | Learned location of Storage (-8) 2448 | -10/Subcaves | Core integrity fell below 50% 2989 | -10/Subcaves | Core integrity fell below 20% 2989 | -10/Subcaves | Ambushed by Subdweller buried in earth 2989 | -10/Subcaves | Ambushed by Subdweller buried in earth 2989 | -10/Subcaves | Ambushed by Subdweller buried in earth 2999 | -10/Subcaves | Destroyed self with Subdweller Shrapnel Launcher Last Messages --------------- 02694_ R4-3F6(R) destroyed. TC-9FM(c): "I think it's somewhere west of here" TC-9FM(c): "I think it's somewhere northwest of here" 02935_ 82-LVC(u) tweaks Twisted Machinery. TC-9FM(c): "I think it's somewhere northwest of here" 02987_ 6R-D9C(R): "GOODGOOD!" 02987_ UE-U53(R): "SLEEPOVER!" 02989_ UE-U53(R) destroyed. 02989_ 6R-D9C(R) destroyed. 02989_ S-10 Pest destroyed. 02990_ D4-1FS(R): "GOODGOOD!" 02990_ QB-WDV(R): "HIDIE!" 02990_ WZ-7J0(R): "ARGHSUB!" 02991_ Wheel destroyed. 02991_ G-34 Mercenary destroyed. 02993_ The unstable cave ceiling collapses. 02995_ BE-NR9(R): "NAT20!" 02996_ Y-45 Defender destroyed. 02996_ Com. Wheel destroyed. 02999_ WZ-7J0(R) destroyed. Map ----- +----------------------------------------------------+ | ?????????????????????????????????????????????????? | | ?????????????????????????????????????????????????? | | ?????????????????????????????????????????????????? | | ?????????????????????????????????????????????????? | | ?????????????????????????????????????????????????? | | ?????????????????????????????????????????????????? | | ???????????????? ????????????????????????????????? | | ???????????????? ???????????????????????????????? | | ???????????????? ?? ???????????????????????????? | | ??????????????? ?? ??????????????????????????? | | ?????????????? #? ?????????????????????? | | ?????????????? ## ???????????????????? | | ?????????????? #?????????????????? | | ?????????????? R ??????????????????? | | ?????????????? ??????????????????? | | ?????????????? ???????????????????? | | ??????????????# ; ; ???????????????????? | | ?????????????## #; R ;#???????????????????? | | ????????????## # [ #???????????????????? | | ???????????## # % ;##??????????????????? | | ???????????# ## ###????####?###????? | | ???????????# #?# #???## ### ##?### | | ???????????# #?# R%! ##### ## #?#" | | ???????????## #?# [ ;;;;; #?##" | | ????????????## ##??# ### #??## | | ??????######?# ##?# @ c ##?###???? | | ??????# ##### ### ###????????? | | ??????# ##?## ;;##??????????# | | ??????# #### ;##??????????## | | ??????# ## ### ;#???????????#" | | ??????# ## ### ##??????????#" | | ??????## ## ## #??????????# | | ???????# ## ### #??####???## | | ???????# #?# #### ##??# | | ???????## #### # #### | | ????????#### #### ## | | ???????????### #### | | ?????????????## ##### #### | | ??????????????# ##### ####??## | | ??????????????# ##### #??????# | | ??????????????## ##??# ##### #??????## | | ???????????????## ##???# ###???###???????#### | | ????????????????####????# ##??????????????????# ## | | ????????????????????????###???????????????????###? | | ?????????????????????????????????????????????????? | | ?????????????????????????????????????????????????? | | ?????????????????????????????????????????????????? | | ?????????????????????????????????????????????????? | | ?????????????????????????????????????????????????? | | ?????????????????????????????????????????????????? | +----------------------------------------------------+ Best States ------------- Heat Dissipation 35 Energy Generation 10 Energy Capacity 250 Matter Stores 300 Matter Capacity 300 Sight Range 16 Robot Scan Range 14 Terrain Scan Density 10 Armor Coverage 150 Evasion (%) 44 Item Schematics ----------------- Huge Storage Unit | -10/Materials | Hacked Robot Schematics ------------------ None Fabricated ------------ Nothing Repaired ---------- EM Pulse Gun | 64% | -10/Materials Studied --------- None Alien Tech Used ----------------- None Achievements -------------- None Challenges ------------ None Game ------ Seed DrainedHeavyBasin Manual? 0 Play Time 00:21:37 Cumulative 30.8 hours Start 2026.09.19 @ 12:11:08 End 2026.09.19 @ 12:30:26 Sessions 1 Manual Loads 0 Difficulty Rogue Special Mode None Game No. 36 Rogue 36 Adventurer 0 Explorer 0 Win Type - Total 1 Types 1/0/0/0/0/0/0/0/0/0 Lore% 35 Gallery% 31 Achievement% 29 Wizard Run 0 Options --------- Layout 0 ASCII 0 Keyboard 0 Movement Numpad Keybinds 0 Fullscreen 1 Font 18/Terminus Map View 76x50 Zoom Use 0% Tactical HUD 1 Map Filters NONE Filters NONE Steam 1 RUN: cf84f38d-6022-464f-8656-108a07fa2ae9